[Event "WALTON 1st Div Women League 2023"]
[Site "Dhaka"]
[Date "2023.03.27"]
[Round "6.3"]
[White "Monika, Kundu"]
[Black "Varshini V Kundar"]
[Result "0-1"]
[ECO "B90"]
[WhiteElo "1333"]
[BlackElo "1096"]
[Annotator "NA RC COMBH"]
[PlyCount "74"]
[EventDate "2023.03.22"]
[EventType "team-tourn"]
[EventCountry "BAN"]
[SourceTitle "playchess.com"]
[Source "ChessBase"]
[SourceQuality "1"]
[TimeControl "5400+30"]

1. e4 {[%emt 0:05:11]} c5 {[%emt 0:00:09]} 2. Nc3 {[%emt 0:00:19]} d6 {[%emt 0:00:14]} 3. Nf3 {[%emt 0:00:24]} a6 {[%emt 0:00:14]} 4. d4 {[%emt 0:00:46]} cxd4 {[%emt 0:00:08]} 5. Nxd4 {[%emt 0:00:12]} Nf6 {[%emt 0:00:05]} 6. Be3 {[%emt 0:00:35]} e5 {[%emt 0:00:28]} 7. Nf3 {[%emt 0:00:32]} Be7 {[%emt 0:00:50]} 8. Bd3 {[%emt 0:00:48]} h6 {[%emt 0:01:41]} 9. Qd2 {[%emt 0:02:00]} Be6 {[%emt 0:00:52]} 10. h3 {[%emt 0:01:18]} Nbd7 {[%emt 0:03:08]} 11. Nh4 {[%emt 0:03:33]} Rc8 {[%emt 0:02:17]} 12. Nf5 {[%emt 0:05:30]} Bxf5 {[%emt 0:00:38]} 13. f4 {[%emt 0:11:19]} exf4 {[%emt 0:01:22]} 14. Bxf4 {[%emt 0:00:34]} Be6 {[%emt 0:00:05]} 15. O-O-O {[%emt 0:00:55]} Nh5 {[%emt 0:00:55]} 16. Be3 {[%emt 0:01:00]} Bg5 {[%emt 0:01:49]} 17. g4 {[%emt 0:01:34]} Bxe3 {[%emt 0:00:34]} 18. Qxe3 {[%emt 0:00:18]} Nhf6 {[%emt 0:00:07]} 19. g5 {[%emt 0:03:08]} hxg5 {[%emt 0:01:00]} 20. Qxg5 {[%emt 0:00:53]} g6 {[%emt 0:01:21]} 21. Rde1 {[%emt 0:01:31]} Nh7 {[%emt 0:00:44]} 22. Qf4 {[%emt 0:00:53]} Qg5 {[%emt 0:00:16]} 23. Nd5 {[%emt 0:01:27]} Bxd5 {[%emt 0:02:25]} 24. exd5+ {[%emt 0:00:28]} Ne5 {[%emt 0:00:10]} 25. Rhf1 {[%emt 0:00:56]} Qxf4+ {[%emt 0:01:19]} 26. Rxf4 {[%emt 0:00:41]} Ke7 {[%emt 0:00:44]} 27. Kb1 {[%emt 0:03:29]} Nf6 {[%emt 0:01:00]} 28. c4 {[%emt 0:00:57]} Rxh3 {[%emt 0:01:48]} 29. Bf1 {[%emt 0:03:02]} Rh1 {[%emt 0:01:10]} 30. b3 {[%emt 0:01:57]} Nh5 {[%emt 0:00:35]} 31. Rf3 {[%emt 0:01:39]} f5 {[%emt 0:00:46]} 32. Rh3 {[%emt 0:02:14]} Rxh3 {[%emt 0:01:21]} 33. Bxh3 {[%emt 0:00:41]} Kf6 {[%emt 0:00:06]} 34. Kc2 {[%emt 0:01:48]} g5 {[%emt 0:00:44]} 35. Bg2 {[%emt 0:06:40]} Nf4 {[%emt 0:01:00]} 36. Rg1 {[%emt 0:06:08]} Nxg2 {[%emt 0:00:59]} 37. Rxg2 {[%emt 0:01:22]} g4 {[%emt 0:00:05]} 0-1

[Event "WALTON 1st Div Women League 2023"]
[Site "Dhaka"]
[Date "2023.03.27"]
[Round "6.4"]
[White "Hamid, Rani"]
[Black "Sayeda Nusaibah, Mahmud"]
[Result "1-0"]
[ECO "C54"]
[WhiteElo "1798"]
[BlackElo "1191"]
[Annotator "NA RC COMBH"]
[PlyCount "75"]
[EventDate "2023.03.22"]
[EventType "team-tourn"]
[EventCountry "BAN"]
[SourceTitle "playchess.com"]
[Source "ChessBase"]
[SourceQuality "1"]
[TimeControl "5400+30"]

1. e4 {[%emt 0:06:17]} e5 {[%emt 0:48:24]} 2. Nf3 {[%emt 0:01:18]} Nc6 {[%emt 0:00:14]} 3. Bc4 {[%emt 0:00:41]} Nf6 {[%emt 0:00:26]} 4. d3 {[%emt 0:00:20]} h6 {[%emt 0:00:56]} 5. O-O {[%emt 0:01:31]} Bc5 {[%emt 0:00:17]} 6. c3 {[%emt 0:00:55]} d6 {[%emt 0:01:17]} 7. d4 {[%emt 0:00:55]} Bb6 {[%emt 0:01:04]} 8. h3 {[%emt 0:05:46]} O-O {[%emt 0:01:49]} 9. dxe5 {[%emt 0:02:58]} Nxe5 {[%emt 0:01:46]} 10. Nxe5 {[%emt 0:00:41]} dxe5 {[%emt 0:00:18]} 11. Qe2 {[%emt 0:00:21]} Qe7 {[%emt 0:00:51]} 12. Nd2 {[%emt 0:00:29]} Be6 {[%emt 0:00:33]} 13. a4 {[%emt 0:00:59]} a5 {[%emt 0:01:25]} 14. b3 {[%emt 0:03:44]} Bc5 {[%emt 0:04:22]} 15. Bd3 {[%emt 0:02:03]} Rfd8 {[%emt 0:04:51]} 16. Bc2 {[%emt 0:00:16]} Bd7 {[%emt 0:03:10]} 17. Re1 {[%emt 0:01:33]} Rab8 {[%emt 0:01:45]} 18. Nf1 {[%emt 0:00:48]} b5 {[%emt 0:02:51]} 19. axb5 {[%emt 0:01:12]} Bxb5 {[%emt 0:00:50]} 20. Qf3 {[%emt 0:00:43]} Nh7 {[%emt 0:04:05]} 21. Rxa5 {[%emt 0:02:06]} Qf6 {[%emt 0:06:01]} 22. Qxf6 {[%emt 0:02:21]} Nxf6 {[%emt 0:01:22]} 23. Ng3 {[%emt 0:00:54]} Bd6 {[%emt 0:03:41]} 24. Be3 {[%emt 0:02:14]} Bd7 {[%emt 0:02:07]} 25. Rea1 {[%emt 0:01:37]} Be6 {[%emt 0:01:45]} 26. b4 {[%emt 0:01:19]} Rdc8 {[%emt 0:01:55]} 27. Bd3 {[%emt 0:05:55]} Rd8 {[%emt 0:02:08]} 28. Be2 {[%emt 0:01:29]} Bd7 {[%emt 0:01:19]} 29. Bc5 {[%emt 0:01:21]} Bxc5 {[%emt 0:01:09]} 30. Rxc5 {[%emt 0:00:05]} Rdc8 {[%emt 0:00:18]} 31. Rxe5 {[%emt 0:00:29]} Bc6 {[%emt 0:01:36]} 32. Nf5 {[%emt 0:03:04]} Re8 {[%emt 0:01:16]} 33. Ne7+ {[%emt 0:00:27]} Kf8 {[%emt 0:00:38]} 34. Nxc6 {[%emt 0:00:11]} Rxe5 {[%emt 0:00:14]} 35. Nxe5 {[%emt 0:00:12]} Nxe4 {[%emt 0:00:37]} 36. Nd7+ {[%emt 0:00:11]} Ke8 {[%emt 0:00:16]} 37. Nxb8 {[%emt 0:00:04]} Nxc3 {[%emt 0:00:32]} 38. Bf3 {[%emt 0:00:41]} 1-0

[Event "WALTON 1st Div Women League 2023"]
[Site "Dhaka"]
[Date "2023.03.27"]
[Round "6.6"]
[White "Sidratul, Muntaha"]
[Black "Noshin, Anjum"]
[Result "0-1"]
[ECO "C47"]
[WhiteElo "1185"]
[BlackElo "1877"]
[Annotator "NA RC COMBH"]
[PlyCount "30"]
[EventDate "2023.03.22"]
[EventType "team-tourn"]
[EventCountry "BAN"]
[SourceTitle "playchess.com"]
[Source "ChessBase"]
[SourceQuality "1"]
[TimeControl "5400+30"]

1. e4 {[%emt 0:00:03]} e5 {[%emt 0:13:06]} 2. Nf3 {[%emt 0:00:12]} Nc6 {[%emt 0:00:08]} 3. Nc3 {[%emt 0:00:31]} Nf6 {[%emt 0:00:15]} 4. a3 {[%emt 0:00:42]} a5 {[%emt 0:00:59]} 5. b3 {[%emt 0:02:28]} Bc5 {[%emt 0:00:32]} 6. Bc4 {[%emt 0:00:22]} d6 {[%emt 0:00:27]} 7. h3 {[%emt 0:01:04]} h6 {[%emt 0:00:10]} 8. d3 {[%emt 0:00:11]} Bd7 {[%emt 0:01:06]} 9. Bb2 {[%emt 0:01:54]} Nd4 {[%emt 0:02:34]} 10. Nh4 {[%emt 0:08:21]} b5 {[%emt 0:01:08]} 11. Bd5 {[%emt 0:01:17]} c6 {[%emt 0:00:25]} 12. b4 {[%emt 0:03:15]} axb4 {[%emt 0:01:17]} 13. axb4 {[%emt 0:00:26]} Ra5 {[%emt 1:14:53]} 14. Ra2 Rxa2 {[%emt 0:00:00]} 15. Qa1 Rxa1+ {[%emt 0:00:00]} 0-1

[Event "WALTON 1st Div Women League 2023"]
[Site "Dhaka"]
[Date "2023.03.27"]
[Round "6.7"]
[White "Kazi Zarin, Tasnim"]
[Black "Sonia, Akhter"]
[Result "1-0"]
[ECO "B02"]
[WhiteElo "1837"]
[BlackElo "1180"]
[Annotator "NA RC COMBH"]
[PlyCount "73"]
[EventDate "2023.03.22"]
[EventType "team-tourn"]
[EventCountry "BAN"]
[SourceTitle "playchess.com"]
[Source "ChessBase"]
[SourceQuality "1"]
[TimeControl "5400+30"]

{[%evp 24,73,124,129,174,123,32767,101,161,158,216,227,243,240,415,428,577,658,897,933,1012,944,1405,1554,1630,1528,29990,29991,29991,2639,29989,2236,2707,2680,2431,0,2841,1911,1742,5002,2087,2678,29986,29987,29987,29991,29991,29992,29992,29989,29996,29997]} 1. e4 {[%emt 0:00:09]} Nf6 {[%emt 0:00:04]} 2. e5 {[%emt 1:31:21]} Ng8 {[%emt 0:00:45]} 3. d4 {[%emt 0:00:00]} d6 {[%emt 0:02:02]} 4. f4 {[%emt 0:00:00]} Nh6 {[%emt 0:00:58]} 5. Nf3 {[%emt 0:00:00]} a6 {[%emt 0:03:12]} 6. Be2 {[%emt 0:00:00]} Bd7 {[%emt 0:00:15]} 7. O-O {[%emt 0:00:00]} Bb5 {[%emt 0:00:40]} 8. c4 {[%emt 0:00:00]} Bd7 {[%emt 0:00:51]} 9. Nc3 {[%emt 0:00:00]} e6 {[%emt 0:00:34]} 10. Re1 {[%emt 0:00:00]} Be7 {[%emt 0:00:33]} 11. d5 {[%emt 0:00:00]} O-O {[%emt 0:00:43]} 12. Ne4 {[%emt 0:00:00]} exd5 {[%emt 0:09:44]} 13. cxd5 {[%emt 0:00:00]} ({Inferior is} 13. Qxd5 Bc6 14. Qd3 dxe5 $11) 13... Bb5 {[%emt 0:06:03]} (13... Kh8 $16) 14. Bxb5 {[%emt 0:00:00]} (14. Bd3 $18) 14... axb5 {[%emt 0:00:37]} 15. e6 {[%emt 0:00:00]} fxe6 {[%emt 0:01:12]} (15... f5 $16) 16. Neg5 {[%emt 0:00:00]} ({Don't play} 16. dxe6 $6 c6 $14) 16... Qc8 {[%emt 0:06:21]} 17. Qd3 {[%emt 0:00:00]} ({Don't play} 17. Nxe6 Re8 18. Bd2 (18. Qd4 Bf6 $16) 18... Nd7) (17. Rxe6 $6 Bxg5 18. Nxg5 Nf7 $16) (17. dxe6 $6 b4 $16) 17... Nf5 {[%emt 0:02:48]} 18. g4 {[%emt 0:00:00]} ({Don't play} 18. dxe6 g6 19. g4 (19. Qxb5 Nc6 $16) 19... Ng7) (18. Qxb5 Bxg5 19. Nxg5 c6 20. dxc6 Qxc6 21. Qxc6 Nxc6 $16) 18... h6 {[%emt 0:02:37]} (18... Bxg5 $142 19. Nxg5 e5 20. fxe5 (20. gxf5 Qxf5 21. Qxf5 Rxf5 $18) 20... h6 21. gxf5 hxg5) 19. Nxe6 {[%emt 0:00:00]} Rf6 {[%emt 0:01:05]} 20. gxf5 {[%emt 0:00:00]} c6 {[%emt 0:09:45] [#]} 21. Nxg7 $1 {[%emt 0:00:00]} Qf8 {[%emt 0:01:16]} 22. Nh5 {[%emt 0:00:00]} Rxf5 {[%emt 0:01:03] [#]} 23. Rxe7 $1 {[%emt 0:00:00]} Qxe7 {[%emt 0:03:47]} 24. Qxf5 {[%emt 0:00:00]} Na6 {[%emt 0:07:22]} 25. Qg6+ {[%emt 0:00:00]} Kh8 {[%emt 0:01:40]} 26. Qxh6+ {[%emt 0:00:00]} (26. b3 $142 Rg8 27. Bb2+ Qe5 28. Qxg8+ Kxg8 29. fxe5 Nc5 30. Nf6+ Kf7 31. exd6) 26... Qh7 {[%emt 0:01:11]} 27. Qf6+ {[%emt 0:00:00]} Kg8 $11 {[%emt 0:00:34]} 28. Qg5+ {[%emt 0:00:00]} (28. Be3 $142 Nc5 (28... Qxh5 29. Bd4 Qg4+ 30. Kf2 Rf8 31. Qh8+ Kf7 32. Qh7+ {[%mdl 64] Skewer} Ke8 33. Re1+ Kd8 34. Qe7+ Kc8 35. Qxf8+ Kc7 36. Re7+ {[%mdl 64] Skewer} Qd7 37. Rxd7+ {[%mdl 64] Discovered Attack} Kxd7 38. Bf6 cxd5 39. Nd4 Kc7 40. Qd8#) 29. Kh1 Qf7 30. Qh6 Ne4 31. Rg1+ Ng5 32. Rxg5+ Qg6 33. Rxg6+ Kf7 34. Qh7+ Kf8 35. Rg8#) 28... Kf7 {[%emt 0:01:17]} 29. Qf6+ $2 {[%emt 0:00:00]} (29. Qg4 $18 Ke7 30. Ng5) 29... Ke8 $2 {[%emt 0:02:29] [#]} 30. Bd2 $1 {[%emt 0:00:00]} Kd7 {[%emt 0:01:12]} 31. dxc6+ {[%emt 0:00:00]} bxc6 {[%emt 0:00:29] [#]} 32. Re1 $1 {[%emt 0:00:00]} Re8 {[%emt 0:04:55]} 33. Rxe8 {[%emt 0:00:00]} Kxe8 {[%emt 0:00:03]} 34. Qe6+ {[%emt 0:00:00]} Kd8 {[%emt 0:00:49]} 35. Ba5+ {[%emt 0:00:00]} Nc7 {[%emt 0:00:09]} 36. Qxd6+ {[%emt 0:00:00]} Ke8 {[%emt 0:01:54]} 37. Nf6+ {[%emt 0:00:00]} 1-0

[Event "WALTON 1st Div Women League 2023"]
[Site "Dhaka"]
[Date "2023.03.27"]
[Round "6.9"]
[White "Nargis, Kaumudi"]
[Black "Nazia, Jafrin Mohona"]
[Result "1-0"]
[ECO "D02"]
[WhiteElo "1253"]
[BlackElo "1206"]
[Annotator "NA RC COMBH"]
[PlyCount "101"]
[EventDate "2023.03.22"]
[EventType "team-tourn"]
[EventCountry "BAN"]
[SourceTitle "playchess.com"]
[Source "ChessBase"]
[SourceQuality "1"]
[TimeControl "5400+30"]

1. d4 {[%emt 0:01:00]} d5 {[%emt 0:30:07]} 2. Nf3 {[%emt 0:00:09]} Nf6 {[%emt 0:00:37]} 3. c3 {[%emt 0:00:21]} Nc6 {[%emt 0:00:18]} 4. Nbd2 {[%emt 0:00:09]} Ne4 {[%emt 0:01:37]} 5. Nb3 {[%emt 0:00:18]} e6 {[%emt 0:01:56]} 6. Ne5 {[%emt 0:00:19]} Nxe5 {[%emt 0:00:50]} 7. dxe5 {[%emt 0:00:03]} Be7 {[%emt 0:00:44]} 8. Nd4 {[%emt 0:00:42]} O-O {[%emt 0:01:18]} 9. f3 {[%emt 0:00:20]} Nc5 {[%emt 0:00:24]} 10. Be3 {[%emt 0:00:59]} f6 {[%emt 0:00:51]} 11. b4 {[%emt 0:02:03]} Nd7 {[%emt 0:01:16]} 12. Nxe6 {[%emt 0:00:35]} Qe8 {[%emt 0:00:42]} 13. Nxf8 {[%emt 0:00:08]} Qxf8 {[%emt 0:00:08]} 14. Qxd5+ {[%emt 0:00:06]} Kh8 {[%emt 0:00:44]} 15. e6 {[%emt 0:00:38]} Nb6 {[%emt 0:00:47]} 16. Qb3 {[%emt 0:03:47]} Qg8 {[%emt 0:00:47]} 17. Bf4 {[%emt 0:00:30]} Bxe6 {[%emt 0:00:27]} 18. Qc2 {[%emt 0:00:12]} Nd5 {[%emt 0:01:18]} 19. Bg3 {[%emt 0:00:42]} Ne3 {[%emt 0:00:28]} 20. Qe4 {[%emt 0:00:22]} Nxf1 {[%emt 0:00:31]} 21. Rxf1 {[%emt 0:00:27]} c6 {[%emt 0:03:00]} 22. a3 {[%emt 0:00:40]} f5 {[%emt 0:01:44]} 23. Qf4 {[%emt 0:00:39]} h6 {[%emt 0:00:48]} 24. Qc7 {[%emt 0:00:13]} Bf6 {[%emt 0:00:24]} 25. Be5 {[%emt 0:00:07]} Bxe5 {[%emt 0:02:26]} 26. Qxe5 {[%emt 0:00:04]} Rd8 {[%emt 0:00:28]} 27. Kf2 {[%emt 0:00:28]} Rd5 {[%emt 0:00:18]} 28. Qc7 {[%emt 0:00:07]} Bc8 {[%emt 0:02:45]} 29. Rfe1 {[%emt 0:00:09]} a6 {[%emt 0:02:07]} 30. Rac1 {[%emt 0:00:19]} Rd7 {[%emt 0:01:01]} 31. Qf4 {[%emt 0:00:30]} b6 {[%emt 0:01:01]} 32. c4 {[%emt 0:00:21]} a5 {[%emt 0:00:28]} 33. b5 {[%emt 0:00:08]} cxb5 {[%emt 0:00:11]} 34. cxb5 {[%emt 0:00:02]} Rd5 {[%emt 0:00:20]} 35. a4 {[%emt 0:00:03]} Qd8 {[%emt 0:00:37]} 36. Qb8 {[%emt 0:00:18]} Rc5 {[%emt 0:01:51]} 37. Rcd1 {[%emt 0:00:12]} Qg8 {[%emt 0:00:28]} 38. Qxb6 {[%emt 0:00:05]} Rc3 {[%emt 0:01:01]} 39. Rd8 {[%emt 0:00:12]} Rc4 {[%emt 0:01:17]} 40. Rxg8+ {[%emt 0:00:04]} Kxg8 {[%emt 0:00:07]} 41. Qxa5 {[%emt 0:00:14]} Rd4 {[%emt 0:00:53]} 42. b6 {[%emt 0:00:15]} Rd7 {[%emt 0:00:05]} 43. Qc5 {[%emt 0:00:07]} Bb7 {[%emt 0:00:22]} 44. Qxf5 {[%emt 0:00:05]} Rf7 {[%emt 0:01:22]} 45. Qc5 {[%emt 0:00:07]} Rf8 {[%emt 0:00:21]} 46. a5 {[%emt 0:00:02]} Rf7 {[%emt 0:01:48]} 47. Rd1 {[%emt 0:02:37]} g5 {[%emt 0:00:28]} 48. Rd8+ {[%emt 0:00:14]} Rf8 {[%emt 0:00:44]} 49. Rxf8+ {[%emt 0:00:16]} Kg7 {[%emt 0:00:13]} 50. Rb8 {[%emt 0:00:10]} Kf6 {[%emt 0:00:23]} 51. Rxb7 {[%emt 0:00:11]} 1-0

[Event "WALTON 1st Div Women League 2023"]
[Site "Dhaka"]
[Date "2023.03.27"]
[Round "6.10"]
[White "Jarin, Tasnim"]
[Black "Warsia, Khusbu"]
[Result "1-0"]
[ECO "B50"]
[WhiteElo "1180"]
[BlackElo "1836"]
[Annotator "NA RC COMBH"]
[PlyCount "69"]
[EventDate "2023.03.22"]
[EventType "team-tourn"]
[EventCountry "BAN"]
[SourceTitle "playchess.com"]
[Source "ChessBase"]
[SourceQuality "1"]
[TimeControl "5400+30"]

{[%evp 22,68,-39,-43,-8,-25,-1,-20,-18,-25,-32,-70,-5,0,20,13,279,343,764,815,775,824,837,859,813,872,858,912,862,956,1299,1270,1173,1221,1316,1404,32767,32767,32767,32767,29995,29989,29995,29990,29997,29998,29998,29999,29999]} 1. e4 {[%emt 0:30:48]} c5 {[%emt 0:00:08]} 2. Nf3 {[%emt 0:00:09]} d6 {[%emt 0:00:06]} 3. Nc3 {[%emt 0:00:20]} e5 {[%emt 0:00:21]} 4. h3 {[%emt 0:00:39]} a6 {[%emt 0:00:16]} 5. d3 {[%emt 0:01:09]} Nf6 {[%emt 0:00:10]} 6. Bg5 {[%emt 0:00:18]} Be7 {[%emt 0:00:13]} 7. Be2 {[%emt 0:01:50]} Nc6 {[%emt 0:00:14]} 8. O-O {[%emt 0:00:28]} h6 {[%emt 0:00:17]} 9. Be3 {[%emt 0:01:24]} O-O {[%emt 0:01:00]} 10. a3 {[%emt 0:00:57]} Nd4 {[%emt 0:02:04]} 11. Bxd4 {[%emt 0:01:22]} cxd4 {[%emt 0:00:34]} 12. Na2 {[%emt 0:00:22]} Qc7 {[%emt 0:00:43]} (12... Be6 $15) 13. c3 {[%emt 0:00:30]} dxc3 {[%emt 0:01:32]} 14. Nxc3 {[%emt 0:01:35]} Be6 {[%emt 0:01:36]} 15. Rc1 {[%emt 0:01:53]} Qb6 {[%emt 0:00:48]} 16. b4 {[%emt 0:02:04]} (16. Qd2 $11 {might be stronger.}) 16... Rac8 {[%emt 0:04:25]} (16... a5 $15) 17. d4 {[%emt 0:00:48]} exd4 {[%emt 0:02:16]} 18. Nxd4 {[%emt 0:00:30]} Bc4 $2 {[%emt 0:01:14]} (18... Bd7 $1 $11 {and Black stays safe.}) 19. Na4 {[%emt 0:00:45]} Bxe2 $2 {[%emt 0:02:15]} (19... Qa7 20. Rxc4 (20. Bxc4 b5 $18) 20... Rxc4 21. Bxc4 b5 22. Bxb5 (22. Nc6 Qb7 $18) 22... axb5) 20. Nxb6 {[%emt 0:00:52]} Bxd1 {[%emt 0:00:31]} 21. Nxc8 {[%emt 0:00:17]} Re8 $18 {[%emt 0:04:14]} 22. Nxe7+ {[%emt 0:00:34]} Rxe7 {[%emt 0:00:42]} 23. Rc8+ {[%emt 0:00:29]} Kh7 {[%emt 0:00:25]} 24. Rxd1 {[%emt 0:00:19]} Nxe4 {[%emt 0:01:01]} 25. Re1 {[%emt 0:00:37]} f5 {[%emt 0:00:17]} 26. f3 {[%emt 0:00:07]} Kg6 {[%emt 0:03:21]} 27. fxe4 {[%emt 0:00:53]} fxe4 {[%emt 0:01:30]} 28. Rd8 {[%emt 0:00:30]} Kg5 {[%emt 0:02:48]} 29. Rxd6 {[%emt 0:00:16]} e3 {[%emt 0:03:35]} 30. Rd5+ {[%emt 0:00:38]} Kf4 {[%emt 0:02:30]} 31. Nf5 {[%emt 0:00:46]} Re4 {[%emt 0:04:15]} 32. g3+ {[%emt 0:00:28]} Kf3 {[%emt 0:01:20]} 33. Rd3 {[%emt 0:00:46]} b5 {[%emt 0:04:01]} 34. Rexe3+ {[%emt 0:00:10]} Rxe3 {[%emt 0:00:16]} 35. Rxe3# {[%emt 0:00:07]} 1-0

[Event "WALTON 1st Div Women League 2023"]
[Site "Dhaka"]
[Date "2023.03.27"]
[Round "6.12"]
[White "Fatiha, Eyenoon Diya"]
[Black "Mahjabeen, Islam"]
[Result "0-1"]
[ECO "D06"]
[WhiteElo "1165"]
[BlackElo "1180"]
[Annotator "NA RC COMBH"]
[PlyCount "122"]
[EventDate "2023.03.22"]
[EventType "team-tourn"]
[EventCountry "BAN"]
[SourceTitle "playchess.com"]
[Source "ChessBase"]
[SourceQuality "1"]
[TimeControl "5400+30"]

1. d4 {[%emt 0:00:03]} d5 {[%emt 0:00:58]} 2. c4 {[%emt 0:00:04]} Nf6 {[%emt 0:01:19]} 3. cxd5 {[%emt 0:00:11]} Nxd5 {[%emt 0:08:04]} 4. e4 {[%emt 0:00:14]} Nb6 {[%emt 1:22:09]} 5. Nc3 {[%emt 0:00:39]} e6 {[%emt 0:00:00]} 6. Nf3 {[%emt 0:00:05]} Bd7 {[%emt 0:00:00]} 7. Bd3 {[%emt 0:01:26]} Bb4 {[%emt 0:00:00]} 8. a3 {[%emt 0:00:08]} Bxc3+ {[%emt 0:00:00]} 9. bxc3 {[%emt 0:00:12]} Qe7 {[%emt 0:00:00]} 10. O-O {[%emt 0:00:52]} O-O {[%emt 0:00:00]} 11. h3 {[%emt 0:00:41]} c5 {[%emt 0:00:00]} 12. d5 {[%emt 0:00:46]} exd5 {[%emt 0:00:00]} 13. exd5 {[%emt 0:00:05]} c4 {[%emt 0:00:00]} 14. Bc2 {[%emt 0:00:16]} Qd6 {[%emt 0:00:00]} 15. Be4 {[%emt 0:02:05]} f5 {[%emt 0:00:00]} 16. Bc2 {[%emt 0:02:03]} Qxd5 {[%emt 0:00:00]} 17. Qxd5+ {[%emt 0:00:25]} Nxd5 {[%emt 0:00:00]} 18. Ne5 {[%emt 0:00:12]} Nxc3 {[%emt 0:00:00]} 19. Bd2 {[%emt 0:03:21]} Nd5 {[%emt 0:00:00]} 20. Nxc4 {[%emt 0:00:20]} Bb5 {[%emt 0:00:00]} 21. Bd3 {[%emt 0:00:16]} Nd7 {[%emt 0:00:00]} 22. Rfb1 {[%emt 0:01:28]} Bxc4 {[%emt 0:00:00]} 23. Bxc4 {[%emt 0:00:24]} N7b6 {[%emt 0:00:00]} 24. Bxd5+ {[%emt 0:00:42]} Nxd5 {[%emt 0:00:00]} 25. Rxb7 {[%emt 0:00:19]} Rfb8 {[%emt 0:00:00]} 26. Rd7 {[%emt 0:00:29]} Nf6 {[%emt 0:00:00]} 27. Rd6 {[%emt 0:00:41]} Ne4 {[%emt 0:00:00]} 28. Rd5 {[%emt 0:00:09]} Nxd2 {[%emt 0:00:00]} 29. Rxd2 {[%emt 0:00:11]} Rb7 {[%emt 0:00:00]} 30. Rd5 {[%emt 0:01:02]} g6 {[%emt 0:00:00]} 31. g4 {[%emt 0:00:06]} fxg4 {[%emt 0:00:00]} 32. hxg4 {[%emt 0:00:07]} h6 {[%emt 0:00:00]} 33. f4 {[%emt 0:00:17]} Rab8 {[%emt 0:00:00]} 34. Kh2 {[%emt 0:02:14]} Rb3 {[%emt 0:00:00]} 35. f5 {[%emt 0:00:21]} g5 {[%emt 0:00:00]} 36. f6 {[%emt 0:00:50]} R8b7 {[%emt 0:00:00]} 37. Rf5 {[%emt 0:00:59]} Kf7 {[%emt 0:00:00]} 38. a4 {[%emt 0:01:14]} Rb2+ {[%emt 0:00:00]} 39. Kg1 {[%emt 0:00:37]} R7b4 {[%emt 0:00:00]} 40. Re1 {[%emt 0:00:55]} Rxg4+ {[%emt 0:00:00]} 41. Kf1 {[%emt 0:00:38]} Rb7 {[%emt 0:00:00]} 42. Rf3 {[%emt 0:01:04]} Rxa4 {[%emt 0:00:15]} 43. Re7+ {[%emt 0:01:31]} Rxe7 {[%emt 0:00:24]} 44. fxe7+ {[%emt 0:00:05]} Kxe7 {[%emt 0:00:13]} 45. Re3+ {[%emt 0:00:10]} Kf6 {[%emt 0:00:15]} 46. Rf3+ {[%emt 0:00:11]} Rf4 {[%emt 0:00:04]} 47. Rxf4+ {[%emt 0:00:14]} gxf4 {[%emt 0:00:06]} 48. Kg2 {[%emt 0:00:15]} a5 {[%emt 0:00:23]} 49. Kf3 {[%emt 0:00:02]} Kf5 {[%emt 0:20:50]} 50. Ke2 {[%emt 0:00:17]} a4 {[%emt 0:00:00]} 51. Kd3 {[%emt 0:00:03]} f3 {[%emt 0:00:00]} 52. Ke3 {[%emt 0:00:55]} a3 {[%emt 0:00:00]} 53. Kxf3 {[%emt 0:00:02]} a2 {[%emt 0:00:00]} 54. Kf2 {[%emt 0:00:04]} a1=Q {[%emt 0:00:00]} 55. Kf3 {[%emt 1:25:00]} Qe5 {[%emt 0:00:00]} 56. Kf2 {[%emt 0:00:00]} Kf4 {[%emt 0:03:30]} 57. Kg2 {[%emt 0:00:00]} Qe3 {[%emt 0:00:00]} 58. Kf1 {[%emt 0:00:00]} Qd2 {[%emt 0:00:00]} 59. Kg1 {[%emt 0:00:00]} Qe2 {[%emt 0:00:00]} 60. Kh1 {[%emt 0:00:00]} Kg3 {[%emt 0:00:00]} 61. Kg1 {[%emt 0:03:00]} Qe1# {[%emt 0:00:00]} 0-1

[Event "WALTON 1st Div Women League 2023"]
[Site "Dhaka"]
[Date "2023.03.27"]
[Round "6.13"]
[White "Nazmin, Akter"]
[Black "Nusrat, Jahan Liza"]
[Result "0-1"]
[ECO "A40"]
[WhiteElo "1258"]
[BlackElo "1573"]
[Annotator "NA RC COMBH"]
[PlyCount "64"]
[EventDate "2023.03.22"]
[EventType "team-tourn"]
[EventCountry "BAN"]
[SourceTitle "playchess.com"]
[Source "ChessBase"]
[SourceQuality "1"]
[TimeControl "5400+30"]

1. d4 {[%emt 0:00:14]} Nc6 {[%emt 0:00:03]} 2. Nf3 {[%emt 0:00:28]} f6 {[%emt 0:00:11]} 3. h3 {[%emt 0:00:29]} e5 {[%emt 0:00:14]} 4. dxe5 {[%emt 0:00:17]} Nxe5 {[%emt 0:00:35]} 5. Nxe5 {[%emt 0:00:26]} fxe5 {[%emt 0:00:03]} 6. Nc3 {[%emt 0:00:23]} Bb4 {[%emt 0:00:16]} 7. Bd2 {[%emt 0:00:40]} Nf6 {[%emt 0:00:37]} 8. e4 {[%emt 0:00:10]} O-O {[%emt 0:01:13]} 9. Bc4+ {[%emt 0:00:26]} Kh8 {[%emt 0:00:14]} 10. Qe2 {[%emt 0:00:36]} d6 {[%emt 0:02:18]} 11. g4 {[%emt 0:00:10]} Qe8 {[%emt 0:04:44]} 12. O-O-O {[%emt 0:02:01]} Be6 {[%emt 0:00:41]} 13. Nd5 {[%emt 0:00:48]} Bxd2+ {[%emt 0:00:19]} 14. Rxd2 {[%emt 0:01:06]} Nxd5 {[%emt 0:00:53]} 15. exd5 {[%emt 0:00:05]} Bg8 {[%emt 0:04:44]} 16. a3 {[%emt 0:02:37]} a6 {[%emt 0:00:43]} 17. Bb3 {[%emt 0:00:26]} b5 {[%emt 0:02:14]} 18. h4 {[%emt 0:00:40]} a5 {[%emt 0:00:42]} 19. Kb1 {[%emt 0:00:43]} a4 {[%emt 0:00:17]} 20. Ba2 {[%emt 0:00:08]} b4 {[%emt 0:00:42]} 21. Rd3 {[%emt 0:00:22]} Qb5 {[%emt 0:01:23]} 22. Qe3 {[%emt 0:00:11]} Rab8 {[%emt 0:01:13]} 23. Rhd1 {[%emt 0:00:52]} bxa3 {[%emt 0:05:22]} 24. b3 {[%emt 0:00:02]} axb3 {[%emt 0:01:07]} 25. Bxb3 {[%emt 0:00:15]} a2+ {[%emt 0:07:45]} 26. Kxa2 {[%emt 0:00:10]} Ra8+ {[%emt 0:00:50]} 27. Kb2 {[%emt 0:00:15]} Qa5 {[%emt 0:02:49]} 28. Kc1 {[%emt 0:00:14]} Rf4 {[%emt 0:06:59]} 29. f3 {[%emt 0:00:32]} Raf8 {[%emt 0:00:26]} 30. Qe2 {[%emt 0:03:34]} e4 {[%emt 0:08:00]} 31. fxe4 {[%emt 0:00:20]} Rf2 {[%emt 0:00:08]} 32. Qe3 {[%emt 0:01:46]} Qa1# {[%emt 0:00:13]} 0-1